Workbook

Sheet Anleitung
A1: Anleitung für das Arbeiten mit dem Laubenrechner (ab Version September 2016) Detailliertere Informationen in der Bedienungsanleitung "Arbeiten mit dem Laubenrechner". Diese kann von der Internetseite des Landesverbands heruntergeladen werden. Die im Laubenrechner angewendeten Werte sind an die Schätzerfibel in der Version September 2016 angepasst. Erstmals ist es möglich, mit dem Laubenrechner Einfachlauben mit und ohne Fundament sowie Nurdachlauben zu bewerten. Der Laubenrechner ist als Excelvorlage abgespeichert. Wird er mit einem Doppelklick von Windows aus geöffnet, öffnet sich eine neue Datei mit dem Inhalt des Laubenrechners. Diese kann nach dem Ausdrucken einfach geschlossen werden. Der Vorteil dieses Verfahrens besteht darin, dass bei jedem Öffnen eine leere Datei zur Verfügung steht; man muss alsonicht erst die alten Inhalte löschen. Will man mitder Abzugmethode arbeiten, kann man von Windows aus die Datei mit einem Rechtsklick öffnen (Nicht "Neu" auswählen!) und auf den Registerblättern die Normwerte auswählen bis der maximale Ausgangswert (z.B. 23) erreicht ist. Danach die Datei speichern.
C2: Wenn auf der rechten Seite des Tabellenblattes die Laubengröße und der jeweils aktuelle Bauindex eingetragen werden, kann der für das ausgewählte Bauteil gültige Wert in Euro abgelesen werden. Dies ist hilfreich, um zu erkennen, welche Beträge für die Bauteile bzw. welche Abzüge zum Ansatz kommen.
A3: Die Abbildungen unten auf dieser Seite beziehen sich auf das Tabellenblatt "Massivlaube", sie gelten aber genauso für die anderen Tabellenblätter. Die eingebaute Plausibilitätskontrolle kann zwar nicht erkennen, wenn etwas falsch ausgewählt wurde, macht aber darauf aufmerksam, dass etwas nicht stimmen kann. Dies wäre zum Beispiel der Fall, wenn sowohl Sattendach als auch Pultdach oder mehrere Eindeckungen ausgewählt wurden. Erkannt wird auch, wenn die Summe der Abzüge zu einem Bauteil größer ist als der Normalherstellungswert ist. Grundsätzlich darf niemals ein Eintrag rot hinterlegt sein! Wichtig: Der Laubenrechner funktioniert nur dann wie beschrieben, wenn Makros zugelassen sind. Falls keine Makros zugelassen sind, funktioniert also der Doppelklick zum Aus- bzw. Abwählen der Einträge nicht. Dann muss hinter dem jeweils gewünschten Eintrag ein kleines "x" in der Spalte "Auswahl" eingetragen bzw. wieder entfernt werden. Ansonsten funktioniert der Laubenrechner ohne Makros, auch die Plausibilitätskontrolle arbeitet ohne Makros.
A71: © 2005 - 2018 Landesverband der Gartenfreunde Bremen e.V. --- Erstellt von Ewald Kuntze --- Anregungen, Ideen, Fehlermeldungen bitte an m.kleeberg@gartenfreunde-bremen.de

Sheet Massivlaube
H1: Ausgangs- wert | I1: Abzüge | J1: Rechen- wert | L1: =IF(K2="Wert","Laubengröße","") -> Laubengröße | M1: =IF(K2="Wert","Bauindex","") -> Bauindex
A2: Wertermittlung Massiv-Laube | H2: =C75 -> 23 | I2: =C76 -> 0 | J2: =C77 -> 23 | K2: Wert | L2: 24 | M2: 28.372
A3: lfd. Nr. | B3: Beschreibung | C3: Normal- wert | D3: Abzug | E3: Aus- wahl | H3: =IF($K$2="Wert",$L$2*$M$2*H2,"") -> 15661.344 | I3: =IF($K$2="Wert",$L$2*$M$2*I2,"") -> 0 | J3: =IF($K$2="Wert",$L$2*$M$2*J2,"") -> 15661.344
A4: 1 | B4: Fundament & Bodenplatte
A5: 1.1 | B5: 80 cm tiefes Streifenfundament mit 12 bis 15 cm Betonplatte | C5: 5 | E5: x | J5: =IF(AND($K$2="Wert",$E5="x"),$L$2*$M$2*C5,"") -> 3404.64 | K5: =IF(E5="x",C5,0) -> 5
A6: 1.2 | B6: Keine Betonplatte | D6: 3 | K6: =IF(E6="x",D6,0) -> 0
A7: 1.2 | B7: Streifenfundament fehlt bei sandigen Böden | D7: 1 | J7: =IF(AND($K$2="Wert",$E7="x"),$L$2*$M$2*D7,"") ->  | K7: =IF(E7="x",D7,0) -> 0
A8: 1.3 | B8: Streifenfundament fehlt bei normalen Böden | D8: 2 | J8: =IF(AND($K$2="Wert",$E8="x"),$L$2*$M$2*D8,"") ->  | K8: =IF(E8="x",D8,0) -> 0
A9: 1.3 | B9: Fundamentoberkante erdgleich | D9: 2 | J9: =IF(AND($K$2="Wert",$E9="x"),$L$2*$M$2*D9,"") ->  | K9: =IF(E9="x",D9,0) -> 0
A10: 2 | B10: Isolierung des Fußbodens (Estrich) | J10: =IF(AND($K$2="Wert",$E10="x"),$L$2*$M$2*C10,"") -> 
A11: 2.1 | B11: Einwandfreier schwimmender Estrich auf Betonfundament | C11: 0.75 | E11: x | J11: =IF(AND($K$2="Wert",$E11="x"),$L$2*$M$2*C11,"") -> 510.696 | K11: =IF(E11="x",C11,0) -> 0.75
A12: 2.2 | B12: Einfacher Verbundestrich | D12: 0.25 | J12: =IF(AND($K$2="Wert",$E12="x"),$L$2*$M$2*D12,"") ->  | K12: =IF(E12="x",D12,0) -> 0
A13: 2.3 | B13: Stark gerissener schwimmender Estrich | D13: 0.5 | F13: 25 | J13: =IF(AND($K$2="Wert",$E13="x"),$L$2*$M$2*D13,"") ->  | K13: =IF(E13="x",D13,0) -> 0
A14: 2.3 | B14: Durch Wasser durchnässter Estrich (Schaden aus 1.3) | D14: 0.75 | J14: =IF(AND($K$2="Wert",$E14="x"),$L$2*$M$2*D14,"") ->  | K14: =IF(E14="x",D14,0) -> 0
A15: 3 | B15: Umfassungswände | J15: =IF(AND($K$2="Wert",$E15="x"),$L$2*$M$2*C15,"") -> 
A16: 3.1 | B16: Außenwände aus 11,5 cm Mauerwerk (1/2-Stein), lotrecht gemauert, vom Fundament durch eine Isolierschicht getrennt. Raumhöhe mindestens 2,10 m, Wände beiderseitig verputzt. | C16: 4 | E16: x | I16: Stufung | J16: =IF(AND($K$2="Wert",$E16="x"),$L$2*$M$2*C16,"") -> 2723.712 | K16: =IF(E16="x",C16,0) -> 4
A17: 3.2 | B17: Raumhöhe niedriger als 2,10 m (0,15 pro fehlenden 10 cm) | D17: =F17*0.01 -> 0.15 | F17: 15 | H17: 0,15-0,75 | I17: 0.15 | J17: =IF(AND($K$2="Wert",$E17="x"),$L$2*$M$2*D17,"") ->  | K17: =IF(E17="x",D17,0) -> 0
A18: 3.3 | B18: Wände gerissen | D18: =F18*0.01 -> 0.25 | F18: 25 | H18: 0,25-0,50 | I18: 0.05 | J18: =IF(AND($K$2="Wert",$E18="x"),$L$2*$M$2*D18,"") ->  | K18: =IF(E18="x",D18,0) -> 0
A19: 3.3 | B19: Wände stark gerissen, klaffende Risse im Bereich von Öffnungen und Gebäudeöffnungen (Schäden aus 1.3) | D19: =F19*0.01 -> 1 | F19: 100 | H19: 1,00 - 2,00 | I19: 0.25 | J19: =IF(AND($K$2="Wert",$E19="x"),$L$2*$M$2*D19,"") ->  | K19: =IF(E19="x",D19,0) -> 0
A20: 3.3 | B20: Wände sind feucht (Schäden aus 1.3) | D20: =F20*0.01 -> 0.5 | F20: 50 | H20: 0,50-1,00 | I20: 0.05 | J20: =IF(AND($K$2="Wert",$E20="x"),$L$2*$M$2*D20,"") ->  | K20: =IF(E20="x",D20,0) -> 0
A21: 3.3 | B21: Wände sichtbar nicht lotrecht gemauert | D21: =F21*0.01 -> 0.5 | F21: 50 | H21: 0,50-1,50 | I21: 0.05 | J21: =IF(AND($K$2="Wert",$E21="x"),$L$2*$M$2*D21,"") ->  | K21: =IF(E21="x",D21,0) -> 0
A22: 4 | B22: Außen- und Innenputz / Außenanstrich | J22: =IF(AND($K$2="Wert",$E22="x"),$L$2*$M$2*C22,"") -> 
A23: 4.1 | B23: Putz ist fluchtgerecht und frei von Unebenheiten. Oberfläche muss für Aufnahme eines Farbanstrichs geeignet sein. | J23: =IF(AND($K$2="Wert",$E23="x"),$L$2*$M$2*C23,"") -> 
B24: Außenputz | C24: 1.5 | E24: x | J24: =IF(AND($K$2="Wert",$E24="x"),$L$2*$M$2*C24,"") -> 1021.392 | K24: =IF(E24="x",C24,0) -> 1.5
B25: Innenputz | C25: 1.25 | E25: x | J25: =IF(AND($K$2="Wert",$E25="x"),$L$2*$M$2*C25,"") -> 851.16 | K25: =IF(E25="x",C25,0) -> 1.25
A26: 4.2 | B26: Putz sandet ab oder Putz ist sichtbar zu dünn (Mauerwerk erkennbar) | D26: 0.5 | J26: =IF(AND($K$2="Wert",$E26="x"),$L$2*$M$2*D26,"") ->  | K26: =IF(E26="x",D26,0) -> 0
A27: 4.3 | B27: Putz ist teilweise lose. Je betroffener Wand 0,25 Abzug | D27: =F27*0.01 -> 0.25 | F27: 25 | H27: 0,25-1,00 | I27: 0.25 | J27: =IF(AND($K$2="Wert",$E27="x"),$L$2*$M$2*D27,"") ->  | K27: =IF(E27="x",D27,0) -> 0
A28: 4.3 | B28: Durchfeuchtung des Sockelbereichs (Schäden aus 1.3) | D28: =F28*0.01 -> 0.5 | F28: 50 | H28: 0,50-1,00 | I28: 0.5 | J28: =IF(AND($K$2="Wert",$E28="x"),$L$2*$M$2*D28,"") ->  | K28: =IF(E28="x",D28,0) -> 0
B29: Außenanstrich | J29: =IF(AND($K$2="Wert",$E29="x"),$L$2*$M$2*C29,"") -> 
A30: 4.1a | B30: Handwerksgerechter mehrmaliger Anstrich auf vorbehandeltem Putz. Anstrich darf an keiner Stelle abblättern. | C30: 0.75 | E30: x | F30: 125 | J30: =IF(AND($K$2="Wert",$E30="x"),$L$2*$M$2*C30,"") -> 510.696 | K30: =IF(E30="x",C30,0) -> 0.75
A31: 4.2a | B31: Anstrich ist älter als vier Jahre, Abzug 0,25 pro Jahr | D31: =F31*0.01 -> 0.25 | F31: 25 | H31: 0,25-0,75 | I31: 0.25 | J31: =IF(AND($K$2="Wert",$E31="x"),$L$2*$M$2*D31,"") ->  | K31: =IF(E31="x",D31,0) -> 0
A32: 4.3a | B32: Anstrich blättert ab und muss erneuert werden | D32: 0.75 | F32: 25 | J32: =IF(AND($K$2="Wert",$E32="x"),$L$2*$M$2*D32,"") ->  | K32: =IF(E32="x",D32,0) -> 0
A33: 5 | B33: Innenwand | J33: =IF(AND($K$2="Wert",$E33="x"),$L$2*$M$2*C33,"") -> 
A34: 5.1 | B34: Abtrennung vom Aufenthalts- zum Geräteraum aus 11,5 cm Mauerwerk (1/2-Stein), lotrecht gemauert und beiderseitig verputzt. | C34: 1 | E34: x | J34: =IF(AND($K$2="Wert",$E34="x"),$L$2*$M$2*C34,"") -> 680.928 | K34: =IF(E34="x",C34,0) -> 1
A35: 5.2 | B35: Nur einseitig verputzt oder verschalt | D35: 0.15 | J35: =IF(AND($K$2="Wert",$E35="x"),$L$2*$M$2*D35,"") ->  | K35: =IF(E35="x",D35,0) -> 0
A36: 5.3 | B36: Innenwand minderwertig ausgeführt (stark gerissen, nicht lotrecht) | D36: 0.25 | J36: =IF(AND($K$2="Wert",$E36="x"),$L$2*$M$2*D36,"") ->  | K36: =IF(E36="x",D36,0) -> 0
A37: 6 | B37: Deckenverkleidung & Wärmeisolierung | J37: =IF(AND($K$2="Wert",$E37="x"),$L$2*$M$2*C37,"") -> 
A38: 6.1 | B38: Deckenverkleidung aus Profilholz (1,00) bzw. Gipskartonplatten (0,50) | C38: 1 | D38: =F38*0.01 -> 0 | E38: x | F38: 0 | H38: 0,00-0,50 | I38: 0.5 | J38: =IF(AND($K$2="Wert",$E38="x"),$L$2*$M$2*(C38-D38),"") -> 680.928 | K38: =IF(E38="x",C38-D38,0) -> 1
A39: 6.2 | B39: Verwendung noch einfacherer Baustoffe (z. B. Kurzlängen bei Profilholz) | D39: =F39*0.01 -> 0.25 | F39: 25 | H39: 0,25-0,50 | I39: 0.05 | J39: =IF(AND($K$2="Wert",$E39="x"),$L$2*$M$2*D39,"") ->  | K39: =IF(E39="x",D39,0) -> 0
A40: 6.3 | B40: Mangelnde Anbringung, offene Fugen usw. | D40: 0.25 | J40: =IF(AND($K$2="Wert",$E40="x"),$L$2*$M$2*D40,"") ->  | K40: =IF(E40="x",D40,0) -> 0
B41: Isolierung | J41: =IF(AND($K$2="Wert",$E41="x"),$L$2*$M$2*C41,"") -> 
A42: 6.1a | B42: Decke isoliert, Stärke ca. 10 cm | C42: 0.5 | E42: x | J42: =IF(AND($K$2="Wert",$E42="x"),$L$2*$M$2*C42,"") -> 340.464 | K42: =IF(E42="x",C42,0) -> 0.5
A43: 6.2a | B43: Stärke der Isolierung nur ca. 5 cm | D43: 0.1 | J43: =IF(AND($K$2="Wert",$E43="x"),$L$2*$M$2*D43,"") ->  | K43: =IF(E43="x",D43,0) -> 0
A44: 7 | B44: Fenster und Türen | C44: 2 | D44: =SUMIF($E$48:$E$52,"",$C$48:$C$52) -> 0 | E44: x | J44: =IF(AND($K$2="Wert",$E44="x"),$L$2*$M$2*C44,"") -> 1361.856 | K44: =IF(E44="x",C44,0) -> 2
B45: Handwerksgerecht erstellte Fenster in Normabmessungen | J45: =IF(AND($K$2="Wert",$E45="x"),$L$2*$M$2*C45,"") ->  | K45: =IF(E44="x",D44,0) -> 0
B46: Nicht zu öffnende Fenster werden nicht berücksichtigt | J46: =IF(AND($K$2="Wert",$E46="x"),$L$2*$M$2*C46,"") -> 
B47: Bei Altbauteilen wird ein Abzug bis zu 50 % vorgenommen | J47: =IF(AND($K$2="Wert",$E47="x"),$L$2*$M$2*C47,"") -> 
A48: 7.1 | B48: Haustür | C48: 0.75 | D48: =F48*0.01 -> 0 | E48: x | F48: 0 | H48: 0,00-0,30 | I48: 0.05 | J48: =IF(AND($K$2="Wert",$E48="x"),$L$2*$M$2*(C48-D48),"") -> 510.696
A49: 7.1 | B49: Nebentür | C49: 0.5 | D49: =F49*0.01 -> 0 | E49: x | F49: 0 | H49: 0,00-0,25 | I49: 0.05 | J49: =IF(AND($K$2="Wert",$E49="x"),$L$2*$M$2*(C49-D49),"") -> 340.464
A50: 7.1 | B50: Großes Fenster | C50: 0.3 | D50: =F50*0.01 -> 0 | E50: x | H50: 0,00-0,15 | I50: 0.05 | J50: =IF(AND($K$2="Wert",$E50="x"),$L$2*$M$2*(C50-D50),"") -> 204.2784
A51: 7.1 | B51: Großes Fenster | C51: 0.3 | D51: =F51*0.01 -> 0 | E51: x | F51: 0 | H51: 0,00-0,15 | I51: 0.05 | J51: =IF(AND($K$2="Wert",$E51="x"),$L$2*$M$2*(C51-D51),"") -> 204.2784
A52: 7.1 | B52: Kleines Fenster | C52: 0.15 | D52: =F52*0.01 -> 0 | E52: x | F52: 0 | H52: 0,00-0,07 | I52: 0.01 | J52: =IF(AND($K$2="Wert",$E52="x"),$L$2*$M$2*(C52-D52),"") -> 102.1392
A53: 7.3 | B53: Der Farbanstrich der Fenster ist mangelhaft | D53: 0.1 | K53: =IF(E53="x",D53,0) -> 0
A54: 7.3 | B54: Fensterbänke, Rahmen und Flügel sind durch mangelnde Pflege in ihrer Funktion beeinträchtigt - dadurch bis zu 50 % Abzug | D54: =F54*0.01 -> 0 | F54: 0 | H54: 0,00-1,00 | I54: 0.25 | J54: =IF(AND($K$2="Wert",$E54="x"),$L$2*$M$2*(C54-D54),"") ->  | K54: =IF(E54="x",D54,0) -> 0
A55: 8 | B55: Dach / Entwässerung | J55: =IF(AND($K$2="Wert",$E55="x"),$L$2*$M$2*C55,"") -> 
B56: Satteldach einfache, handwerksgerechte Konstruktion aus Bauholz der Güteklasse 2, die den statischen Erfordernissen entspricht. Holz muss imprägniert sein. Eindeckung Pfannen auf Latten mit Folie oder aus Pappschindeln mit Unterbau auf Schalung. Dachraum muss nutzbar sein. | J56: =IF(AND($K$2="Wert",$E56="x"),$L$2*$M$2*C56,"") ->  | K56: =IF(E56="x",C56,0) -> 0
A57: 8.1 | B57: Satteldach wie vorstehend beschrieben mit Pfannenendeckung | C57: 5.25 | E57: x | K57: =IF(E57="x",C57,0) -> 5.25
A58: 8.2 | B58: Holzkonstruktion aus altem Bauholz | D58: =F58*0.01 -> 0.5 | F58: 50 | H58: 0,50-1,00 | I58: 0.05 | J58: =IF(AND($K$2="Wert",$E58="x"),$L$2*$M$2*D58,"") ->  | K58: =IF(E58="x",D58,0) -> 0
A59: 8.2 | B59: Eindeckung aus Wellzement oder ähnlichem Material | D59: 1.25 | F59: 125 | H59: 1,25-1,50 | I59: 0.05 | K59: 0
A60: 8.2 | B60: Dachraum nicht nutzbar | D60: 0.25 | F60: 25 | H60: 0,25-0,50 | I60: 0.05 | K60: 0
A61: 8.2 | B61: Eindeckung aus Dachbahnen | D61: 1.5 | F61: 150 | H61: 1,50-1,75 | I61: 0.05 | K61: 0
A62: 8.3 | B62: Windfedern fehlen (je Windfeder 0,05) | D62: 0.05 | F62: 5 | H62: 0,05-0,20 | I62: 0.05 | J62: =IF(AND($K$2="Wert",$E62="x"),$L$2*$M$2*D62,"") ->  | K62: =IF(E62="x",D62,0) -> 0
A63: 8.3 | B63: Fehlerhafte Anwendung des Materials, z. B. zu geringe Dachneigung, genagelte Dachbahnen, wellige Dachbahnen | D63: 0.25 | F63: 25 | H63: 0,25-1,25 | I63: 0.05 | K63: 0
A64: 8.3 | B64: Eindeckung aus Asbestzement (1,00 + 0,50 je Dachseite) | D64: 1.5 | F64: 150 | H64: 1,50-2,00 | I64: 0.5 | K64: 0
A65: 8.3 | B65: Rinnen fehlen bzw. ohne Funktion (0,25 je Rinne) | D65: 0.25 | F65: 25 | H65: 0,25-0,50 | I65: 0.25 | K65: 0
A66: 8.1a | B66: Pultdach Balkenlage mit Isolierung, Schalung und Regenhaut | C66: 1.75 | F66: 125 | J66: =IF(AND($K$2="Wert",$E66="x"),$L$2*$M$2*C66,"") ->  | K66: =IF(E66="x",C66,0) -> 0
A67: 8.2a | B67: Holzkonstruktion aus altem Bauholz | D67: =F67*0.01 -> 0.5 | F67: 50 | H67: 0,50-1,25 | I67: 0.05 | J67: =IF(AND($K$2="Wert",$E67="x"),$L$2*$M$2*D67,"") ->  | K67: =IF(E67="x",D67,0) -> 0
A68: 8.2a | B68: Eindeckung aus Wellzement oder ähnlichem Material | D68: 0.25 | F68: 25 | H68: 0,25-0,50 | I68: 0.05 | J68: =IF(AND($K$2="Wert",$E68="x"),$L$2*$M$2*D68,"") ->  | K68: =IF(E68="x",D68,0) -> 0
A69: 8.2a | B69: Eindeckung aus Dachbahnen | D69: 0.5 | F69: 50 | H69: 0,50-0,75 | I69: 0.05 | J69: =IF(AND($K$2="Wert",$E69="x"),$L$2*$M$2*D69,"") ->  | K69: =IF(E69="x",D69,0) -> 0
A70: 8.3a | B70: Windfedern fehlen (je Windfeder 0,05) | D70: =F70*0.01 -> 0.05 | F70: 5 | H70: 0,05-0,20 | I70: 0.05 | J70: =IF(AND($K$2="Wert",$E70="x"),$L$2*$M$2*D70,"") ->  | K70: =IF(E70="x",D70,0) -> 0
A71: 8.3a | B71: Fehlerhafte Anwendung des Materials, z. B. zu geringe Dachneigung, genagelte Dachbahnen, wellige Dachbahnen | D71: =F71*0.01 -> 0.25 | F71: 25 | H71: 0,25-1,25 | I71: 0.25 | J71: =IF(AND($K$2="Wert",$E71="x"),$L$2*$M$2*D71,"") ->  | K71: =IF(E71="x",D71,0) -> 0
A72: 8.3a | B72: Eindeckung aus Asbestzement (Hier können gesonderte Entsorgungskosten entstehen) | D72: 0.5 | J72: =IF(AND($K$2="Wert",$E72="x"),$L$2*$M$2*D72,"") ->  | K72: =IF(E72="x",D72,0) -> 0
A73: 8.3a | B73: Rinne fehlt bzw. ohne Funktion | D73: 0.25 | J73: =IF(AND($K$2="Wert",$E73="x"),$L$2*$M$2*D73,"") ->  | K73: =IF(E73="x",D73,0) -> 0
A75: Ausgangswert | C75: =SUMIF($E$4:$E$44,"x",$C$4:$C$44)+SUMIF($E$56:$E$73,"x",$C$56:$C$73) -> 23
A76: Abzüge | C76: =SUMIF($E$4:$E$73,"x",$D$4:$D$73) -> 0
A77: Rechenwert | C77: =C75-C76 -> 23
B80: Datum der Schätzung:
B82: Pächter:
B84: Gartenadresse:

Sheet Holzlaube (Standard)
H1: Ausgangs- wert | I1: Abzüge | J1: Rechen- wert | L1: =IF(K2="Wert","Laubengröße","") -> Laubengröße | M1: =IF(K2="Wert","Bauindex","") -> Bauindex
A2: Wertermittlung Holz-Laube (Standard) | H2: =C76 -> 23 | I2: =C77 -> 0 | J2: =C78 -> 23 | K2: Wert | L2: 24 | M2: 27.795
A3: lfd. Nr. | B3: Beschreibung | C3: Normal- wert | D3: Abzug | E3: Aus- wahl | H3: =IF($K$2="Wert",$L$2*$M$2*H2,"") -> 15342.84 | I3: =IF($K$2="Wert",$L$2*$M$2*I2,"") -> 0 | J3: =IF($K$2="Wert",$L$2*$M$2*J2,"") -> 15342.84
A4: 1 | B4: Fundament & Bodenplatte
A5: 1.1 | B5: 80 cm tiefes Streifenfundament mit 12 bis 15 cm Betonplatte | C5: 5 | E5: x | J5: =IF(AND($K$2="Wert",$E5="x"),$L$2*$M$2*C5,"") -> 3335.4 | K5: =IF(E5="x",C5,0) -> 5
A6: 1.2 | B6: Statt der Betonplatte Lagerhölzer auf Streifenfundament und Hobeldielen oder Fußbodenplatten 24 mm (Spanplatten V100) | D6: 2.5 | J6: =IF(AND($K$2="Wert",$E6="x"),$L$2*$M$2*D6,"") ->  | K6: =IF(E6="x",D6,0) -> 0
A7: 1.2 | B7: Nur Sockelsteine mit Lagerhölzern, sonst wie vorstehend | D7: 3.5 | J7: =IF(AND($K$2="Wert",$E7="x"),$L$2*$M$2*D7,"") ->  | K7: =IF(E7="x",D7,0) -> 0
A8: 1.2 | B8: Streifenfundament fehlt bei sandigen Böden | D8: 2 | K8: =IF(E8="x",D8,0) -> 0
A9: 1.3 | B9: Fehlt das Streifenfundament bei normalen Böden, ist das Fundament durch Frost gefährdet | D9: 3 | K9: =IF(E9="x",D9,0) -> 0
A10: 1.3 | B10: Fundamentoberkante erdgleich. | D10: 2 | J10: =IF(AND($K$2="Wert",$E10="x"),$L$2*$M$2*D10,"") ->  | K10: =IF(E10="x",D10,0) -> 0
A11: 2 | B11: Isolierung des Fußbodens (Estrich)
A12: 2.1 | B12: Ein einwandfreier schwimmender Estrich auf Betonplatte oder Lagerhölzer 10 cm mit Isolierung und Hobeldielen oder Fußbodenplatten 24 mm (Spanplatten V100) | C12: 0.75 | E12: x | J12: =IF(AND($K$2="Wert",$E12="x"),$L$2*$M$2*C12,"") -> 500.31 | K12: =IF(E12="x",C12,0) -> 0.75
A13: 2.2 | B13: Einfacher Verbundestrich auf einem Betonfundament | D13: 0.25 | K13: =IF(E13="x",D13,0) -> 0
A14: 2.2 | B14: Fehlende Isolierung unter den Hobeldielen oder Fußbodenplatten | D14: 0.75 | F14: 75 | J14: =IF(AND($K$2="Wert",$E14="x"),$L$2*$M$2*D14,"") ->  | K14: 0
A15: 2.3 | B15: Stark gerissener schwimmender Estrich | D15: 0.5 | J15: =IF(AND($K$2="Wert",$E15="x"),$L$2*$M$2*D15,"") ->  | K15: 0
A16: 2.3 | B16: Durch Wasser durchnässter Estrich (Schaden aus 1.3) | D16: 0.75 | J16: =IF(AND($K$2="Wert",$E16="x"),$L$2*$M$2*D16,"") ->  | K16: 0
A17: 2.3 | B17: Stärke der Fußbodenplatten zu gering oder Abstand der Lagerhölzer zu groß. Boden biegt bei Belastung merklich durch. | D17: 0.5 | J17: =IF(AND($K$2="Wert",$E17="x"),$L$2*$M$2*D17,"") ->  | K17: 0
A18: 2.3 | B18: Isolierung ist feucht | D18: 0.75 | J18: =IF(AND($K$2="Wert",$E18="x"),$L$2*$M$2*D18,"") ->  | K18: 0
A19: 3 | B19: Umfassungswände
A20: 3.1 | B20: Holzgerüst aus Kanthölzern der Güteklasse 2, mind. 8 x 8 cm, mit ausr. Schubaussteifung sowie Ober- und Untergurten.Gerüst muss auf einem gegen Feuchtigkeit isolierten Sockel stehen. Holz muss imprägniert sein. Ständerabstand max. 70 cm. Öffnungen und Fugen sind so zu verleisten, dass eingedrungenes Wasser problemlos ablaufen kann. Wände außen 19,5 mm Nut- und Federholz, innen 12,5 mm oder Spanplatten gleicher Stärke. | C20: 6.5 | E20: x | I20: Stufung | J20: =IF(AND($K$2="Wert",$E20="x"),$L$2*$M$2*C20,"") -> 4336.02 | K20: =IF(E20="x",C20,0) -> 6.5
A21: 3.2 | B21: Außenschalung statt 19,5 nur 12,5 mm | D21: =F21*0.01 -> 0.75 | F21: 75 | H21: 0,75-1,25 | I21: 0.05 | J21: =IF(AND($K$2="Wert",$E21="x"),$L$2*$M$2*D21,"") ->  | K21: =IF(E21="x",D21,0) -> 0
A22: 3.2 | B22: Außenschalung erkennbar 3. Wahl | D22: =F22*0.01 -> 0.75 | F22: 75 | H22: 0,75-1,25 | I22: 0.05 | K22: 0
A23: 3.2 | B23: Statt Profilholz verputzte Leichtbauplatten | D23: =F23*0.01 -> 0.5 | F23: 50 | H23: 0,50-1,00 | I23: 0.05 | K23: 0
A24: 3.2 | B24: Ständerabstand größer 70 cm | D24: =F24*0.01 -> 0.25 | F24: 25 | H24: 0,25-1,25 | I24: 0.05 | K24: 0
A25: 3.2 | B25: Holzkonstruktion aus altem Bauholz | D25: =F25*0.01 -> 0.75 | F25: 75 | H25: 0,75-1,50 | I25: 0.05 | K25: 0
A26: 3.3 | B26: Öffnungen und Fugen nicht verleistet | D26: 1 | K26: 0
A27: 3.3 | B27: Abstand Schalung bis Oberkante Gelände kleiner als 15 cm | D27: 2 | K27: 0
A28: 3.3 | B28: Nicht handwerksgerechte Anbringung der Außenschalung, welches zum Entfernen der gesamten Schalung zwingt. | D28: =F28*0.01 -> 2 | F28: 200 | H28: 2,00-3,00 | I28: 0.25 | K28: 0
A29: 4 | B29: Außenanstrich
A30: 4.1 | B30: Mehrmaliger Anstrich mit Anstrichmittel, welches Holzteile sowohl gegen Feuchtigkeit als auch gegen Schädlinge schützt | C30: 1 | E30: x | F30: 125 | J30: =IF(AND($K$2="Wert",$E30="x"),$L$2*$M$2*C30,"") -> 667.08 | K30: =IF(E30="x",C30,0) -> 1
A31: 4.2 | B31: Anstrich ist älter als vier Jahre, Abzug 0,25 pro Jahr | D31: =F31*0.01 -> 0.25 | F31: 25 | H31: 0,25-1,00 | I31: 0.25 | J31: =IF(AND($K$2="Wert",$E31="x"),$L$2*$M$2*D31,"") ->  | K31: =IF(E31="x",D31,0) -> 0
A32: 4.3 | B32: Anstrich blättert ab und muss erneuert werden (0,25 je Seite) | D32: =F32*0.01 -> 0.5 | F32: 50 | H32: 0,25-0,75 | I32: 0.25 | J32: =IF(AND($K$2="Wert",$E32="x"),$L$2*$M$2*D32,"") ->  | K32: =IF(E32="x",D32,0) -> 0
A33: 5 | B33: Innenwand
A34: 5.1 | B34: Innenwand muss konstruktiv wie die Außenwände ausgeführt sein | C34: 1 | E34: x | J34: =IF(AND($K$2="Wert",$E34="x"),$L$2*$M$2*C34,"") -> 667.08 | K34: =IF(E34="x",C34,0) -> 1
A35: 5.2 | B35: Nur einseitig verschalt | D35: 0.25 | J35: =IF(AND($K$2="Wert",$E35="x"),$L$2*$M$2*D35,"") ->  | K35: =IF(E35="x",D35,0) -> 0
A36: 5.2 | B36: Verkleidung aus qualitativ minderwertigen Materialien | D36: 0.25 | J36: =IF(AND($K$2="Wert",$E36="x"),$L$2*$M$2*D36,"") ->  | K36: =IF(E36="x",D36,0) -> 0
A37: 5.3 | B37: Ständerabstand größer als 70 cm | D37: 0.25 | J37: =IF(AND($K$2="Wert",$E37="x"),$L$2*$M$2*D37,"") ->  | K37: =IF(E37="x",D37,0) -> 0
A38: 6 | B38: Deckenverkleidung & Wärmeisolierung
A39: 6.1 | B39: Deckenverkleidung aus einfachem Profilholz oder Gipskartonplatten. Die vier Außenwände sowie die Decke sind gegen Wärme und Kälte zu isolieren. Mindeststärke der Isolierung 6 cm. Je nach Material ist darauf zu achten, dass eine Durchfeuchtung ausgeschlossen ist. Bei Pultdachlauben entfällt die Isolierung, da im Dach vorhanden. | C39: 1.5 | E39: x | J39: =IF(AND($K$2="Wert",$E39="x"),$L$2*$M$2*C39,"") -> 1000.62 | K39: =IF(E39="x",C39,0) -> 1.5
A40: 6.2 | B40: Deckenverkleidung aus Gipskartonplatten | D40: 0.25 | F40: 50 | J40: =IF(AND($K$2="Wert",$E40="x"),$L$2*$M$2*D40,"") ->  | K40: =IF(E40="x",D40,0) -> 0
A41: 6.2 | B41: Stärke der Isolierung nur ca. 5 cm (0,1 je Teilbereich) | D41: =F41*0.01 -> 0.1 | F41: 10 | H41: 0,10-0,50 | I41: 0.1 | J41: =IF(AND($K$2="Wert",$E41="x"),$L$2*$M$2*D41,"") ->  | K41: =IF(E41="x",D41,0) -> 0
A42: 6.2 | B42: Verwendung einfacherer Baustoffe (z. B. Kurzlängen bei Profilholz) | D42: =F42*0.01 -> 0.25 | F42: 25 | H42: 0,25-0,50 | I42: 0.05 | J42: =IF(AND($K$2="Wert",$E42="x"),$L$2*$M$2*D42,"") ->  | K42: =IF(E42="x",D42,0) -> 0
A43: 6.3 | B43: Mangelnde Anbringung, offene Fugen usw. | D43: 0.25 | K43: =IF(E43="x",D43,0) -> 0
A44: 6.3 | B44: Durch Schäden in der Außenverkleidung sind Teile der Isolierung durchfeuchtet. | D44: 0.25 | K44: =IF(E44="x",D44,0) -> 0
A45: 7 | B45: Fenster und Türen | C45: 2 | D45: =SUMIF($E$49:$E$53,"",$C$49:$C$53) -> 0 | E45: x | J45: =IF(AND($K$2="Wert",$E45="x"),$L$2*$M$2*C45,"") -> 1334.16 | K45: =IF(E45="x",C45,0) -> 2
B46: Handwerksgerecht erstellte Fenster in Normabmessungen | K46: =IF(E45="x",D45,0) -> 0
B47: Nicht zu öffnende Fenster werden nicht berücksichtigt
B48: Bei Altbauteilen wird ein Abzug bis zu 50 % vorgenommen
A49: 7.1 | B49: Haustür | C49: 0.75 | D49: =F49*0.01 -> 0 | E49: x | F49: 0 | H49: 0,00-0,30 | I49: 0.05 | J49: =IF(AND($K$2="Wert",$E49="x"),$L$2*$M$2*(C49-D49),"") -> 500.31
A50: 7.1 | B50: Nebentür | C50: 0.5 | D50: =F50*0.01 -> 0 | E50: x | F50: 0 | H50: 0,00-0,25 | I50: 0.05 | J50: =IF(AND($K$2="Wert",$E50="x"),$L$2*$M$2*(C50-D50),"") -> 333.54
A51: 7.1 | B51: Großes Fenster | C51: 0.3 | D51: =F51*0.01 -> 0 | E51: x | H51: 0,00-0,15 | I51: 0.05 | J51: =IF(AND($K$2="Wert",$E51="x"),$L$2*$M$2*(C51-D51),"") -> 200.124
A52: 7.1 | B52: Großes Fenster | C52: 0.3 | D52: =F52*0.01 -> 0 | E52: x | F52: 0 | H52: 0,00-0,15 | I52: 0.05 | J52: =IF(AND($K$2="Wert",$E52="x"),$L$2*$M$2*(C52-D52),"") -> 200.124
A53: 7.1 | B53: Kleines Fenster | C53: 0.15 | D53: =F53*0.01 -> 0 | E53: x | H53: 0,00-0,07 | I53: 0.01 | J53: =IF(AND($K$2="Wert",$E53="x"),$L$2*$M$2*(C53-D53),"") -> 100.062
A54: 7.3 | B54: Der Farbanstrich der Fenster ist mangelhaft | D54: 0.1 | K54: =IF(E54="x",D54,0) -> 0
A55: 7.3 | B55: Fensterbänke, Rahmen und Flügel sind durch mangelnde Pflege in ihrer Funktion beeinträchtigt - dadurch bis zu 50 % Abzug | D55: =F55*0.01 -> 1 | F55: 100 | H55: 0,00-1,00 | I55: 0.05 | J55: =IF(AND($K$2="Wert",$E55="x"),$L$2*$M$2*D55,"") ->  | K55: =IF(E55="x",D55,0) -> 0
A56: 8 | B56: Dach / Entwässerung
B57: Satteldach einfache, handwerksgerechte Konstruktion aus Bauholz der Güteklasse 2, die den statischen Erfordernissen entspricht. Holz muss imprägniert sein. Eindeckung Pfannen auf Latten mit Folie oder aus Pappschindeln mit Unterbau auf Schalung. Dachraum muss nutzbar sein. | J57: =IF(AND($K$2="Wert",$E57="x"),$L$2*$M$2*C57,"") ->  | K57: =IF(E57="x",C57,0) -> 0
A58: 8.1 | B58: Satteldach wie vorstehend beschrieben mit Pfannenendeckung | C58: 5.25 | E58: x | K58: =IF(E58="x",C58,0) -> 5.25
A59: 8.2 | B59: Holzkonstruktion aus altem Bauholz | D59: =F59*0.01 -> 0.5 | F59: 50 | H59: 0,50-1,00 | I59: 0.1 | J59: =IF(AND($K$2="Wert",$E59="x"),$L$2*$M$2*D59,"") ->  | K59: =IF(E59="x",D59,0) -> 0
A60: 8.2 | B60: Eindeckung aus Wellzement oder ähnlichem Material | D60: 1.25 | F60: 125 | H60: 1,25-1,50 | I60: 0.05 | K60: 0
A61: 8.2 | B61: Dachraum nicht nutzbar | D61: 0.25 | F61: 25 | H61: 0,25-0,50 | I61: 0.05 | K61: 0
A62: 8.2 | B62: Eindeckung aus Dachbahnen | D62: 1.5 | F62: 150 | H62: 1,50-1,75 | I62: 0.05 | K62: 0
A63: 8.3 | B63: Windfedern fehlen (je Findfeder 0,05) | D63: 0.05 | F63: 5 | H63: 0,05-0,20 | I63: 0.05 | J63: =IF(AND($K$2="Wert",$E63="x"),$L$2*$M$2*D63,"") ->  | K63: =IF(E63="x",D63,0) -> 0
A64: 8.3 | B64: Fehlerhafte Anwendung des Materials, z. B. zu geringe Dachneigung, genagelte Dachbahnen, wellige Dachbahnen | D64: 0.25 | F64: 25 | H64: 0,25-1,25 | I64: 0.05 | K64: 0
A65: 8.3 | B65: Eindeckung aus Asbestzement (Hier können gesonderte Entsorgungskosten entstehen) | D65: 1.5 | F65: 150 | H65: 1,50-2,00 | I65: 0.5 | K65: 0
A66: 8.3 | B66: Rinnen fehlen bzw. ohne Funktion (0,25 je Rinne) | D66: 0.25 | F66: 25 | H66: 0,25-0,50 | I66: 0.25 | K66: 0
A67: 8.1a | B67: Pult- oder Flachdach Balkenlage mit Isolierung, Schalung und Regenhaut | C67: 1.75 | F67: 125 | J67: =IF(AND($K$2="Wert",$E67="x"),$L$2*$M$2*C67,"") ->  | K67: =IF(E67="x",C67,0) -> 0
A68: 8.2a | B68: Konstruktion aus altem Bauholz | D68: 0.5 | F68: 50 | H68: 0,50-1,25 | I68: 0.05 | J68: =IF(AND($K$2="Wert",$E68="x"),$L$2*$M$2*D68,"") ->  | K68: 0
A69: 8.2a | B69: Eindeckung aus Wellzement oder ähnlichem Material | D69: 0.25 | F69: 25 | H69: 0,25-0,50 | I69: 0.05 | J69: =IF(AND($K$2="Wert",$E69="x"),$L$2*$M$2*D69,"") ->  | K69: =IF(E69="x",D69,0) -> 0
A70: 8.2a | B70: Eindeckung aus Dachbahnen | D70: 0.5 | F70: 50 | H70: 0,50-0,75 | I70: 0.05 | J70: =IF(AND($K$2="Wert",$E70="x"),$L$2*$M$2*D70,"") ->  | K70: =IF(E70="x",D70,0) -> 0
A71: 8.3a | B71: Windfedern fehlen (je Findfeder 0,05) | D71: 0.05 | F71: 5 | H71: 0,05-0,20 | I71: 0.05 | K71: 0
A72: 8.3a | B72: Fehlerhafte Anwendung des Materials, z. B. zu geringe Dachneigung, genagelte Dachbahnen, wellige Dachbahnen | D72: 0.25 | F72: 25 | H72: 0,25-1,25 | I72: 0.05 | J72: =IF(AND($K$2="Wert",$E72="x"),$L$2*$M$2*D72,"") ->  | K72: 0
A73: 8.3a | B73: Eindeckung aus Asbestzement (Hier können gesonderte Entsorgungskosten entstehen) | D73: 0.5 | F73: 50 | H73: 0,50-1,00 | I73: 0.5 | J73: =IF(AND($K$2="Wert",$E73="x"),$L$2*$M$2*D73,"") ->  | K73: =IF(E73="x",D73,0) -> 0
A74: 8.3a | B74: Rinnen fehlen bzw. ohne Funktion (0,25 je Rinne) | D74: 0.25 | F74: 25 | H74: 0,25-0,50 | I74: 0.25 | J74: =IF(AND($K$2="Wert",$E74="x"),$L$2*$M$2*D74,"") ->  | K74: =IF(E74="x",D74,0) -> 0
A76: Ausgangswert | C76: =SUMIF($E$4:$E$45,"x",$C$4:$C$45)+SUMIF($E$57:$E$74,"x",$C$57:$C$74) -> 23
A77: Abzüge | C77: =SUMIF($E$4:$E$74,"x",$D$4:$D$74) -> 0
A78: Rechenwert | C78: =C76-C77 -> 23
B81: Datum der Schätzung:
B83: Pächter:
B85: Gartenadresse:

Sheet Holzlaube (Typ A)
H1: Ausgangs- wert | I1: Abzüge | J1: Rechen- wert | L1: =IF(K2="Wert","Laubengröße","") -> Laubengröße | M1: =IF(K2="Wert","Bauindex","") -> Bauindex
A2: Wertermittlung Einfachlaube ohne Fundament (Typ A) | H2: =C42 -> 8.5 | I2: =C43 -> 0 | J2: =C44 -> 8.5 | K2: Wert | L2: 24 | M2: 27.795
A3: lfd. Nr. | B3: Beschreibung | C3: Normal- wert | D3: Abzug | E3: Aus- wahl | H3: =IF($K$2="Wert",$L$2*$M$2*H2,"") -> 5670.18 | I3: =IF($K$2="Wert",$L$2*$M$2*I2,"") -> 0 | J3: =IF($K$2="Wert",$L$2*$M$2*J2,"") -> 5670.18
A4: 1 | B4: Fundament
A5: 1.2 | B5: Lagerhölzer auf im Sand verlegten Gehwegplatten oder Sockelsteinen | C5: 1 | E5: x
A6: 1.3 | B6: Lagerhölzer ebenerdig auf Gehwegplatten oder Sockelsteinen verlegt | D6: 0.5 | J6: =IF(AND($K$2="Wert",$E6="x"),$L$2*$M$2*D6,"") ->  | K6: =IF(E6="x",D6,0) -> 0
A7: 2 | B7: Umfassungswände
A8: 2.1 | B8: Blockhausbohlen, Wandstärke mindestens 4,5 cm | C8: 2.5 | E8: x | J8: =IF(AND($K$2="Wert",$E8="x"),$L$2*$M$2*C8,"") -> 1667.7 | K8: =IF(E8="x",C8,0) -> 2.5
A9: 2.2 | B9: Blockhausbohlen, Wandstärke nur 3,0 bis 4,0 cm | D9: 1 | J9: =IF(AND($K$2="Wert",$E9="x"),$L$2*$M$2*D9,"") ->  | K9: =IF(E9="x",D9,0) -> 0
A10: 2.2 | B10: Ausführung in Nut- und Federholz oder Blockhausbohlen unter 3,0 cm | D10: 1.5 | K10: =IF(E10="x",D10,0) -> 0
A11: 3 | B11: Außenanstrich
A12: 3.1 | B12: Mehrmaliger Anstrich mit Anstrichmittel, welches Holzteile sowohl gegen Feuchtigkeit als auch gegen Schädlinge schützt | C12: 1 | E12: x | F12: 125 | I12: Stufung | J12: =IF(AND($K$2="Wert",$E12="x"),$L$2*$M$2*C12,"") -> 667.08 | K12: =IF(E12="x",C12,0) -> 1
A13: 3.2 | B13: Anstrich ist älter als vier Jahre, Abzug 0,25 pro Jahr | D13: =F13*0.01 -> 0.25 | F13: 25 | H13: 0,25-1,00 | I13: 0.25 | J13: =IF(AND($K$2="Wert",$E13="x"),$L$2*$M$2*D13,"") ->  | K13: =IF(E13="x",D13,0) -> 0
A14: 3.3 | B14: Anstrich blättert ab und muss erneuert werden, 0,25 jeSeite | D14: =F14*0.01 -> 0.25 | F14: 25 | H14: 0,25-1,00 | I14: 0.25 | J14: =IF(AND($K$2="Wert",$E14="x"),$L$2*$M$2*D14,"") ->  | K14: =IF(E14="x",D14,0) -> 0
A15: 4 | B15: Innenwand
A16: 4.1 | B16: Innenwand muss konstruktiv wie die Außenwände ausgeführt sein | C16: 0.5 | E16: x | J16: =IF(AND($K$2="Wert",$E16="x"),$L$2*$M$2*C16,"") -> 333.54 | K16: =IF(E16="x",C16,0) -> 0.5
A17: 5 | B17: Fenster und Türen | C17: 1.5 | D17: =SUMIF($E$21:$E$24,"",$C$21:$C$24) -> 0 | E17: x | J17: =IF(AND($K$2="Wert",$E17="x"),$L$2*$M$2*C17,"") -> 1000.62 | K17: =IF(E17="x",C17,0) -> 1.5
B18: Handwerksgerecht erstellte Fenster in Normabmessungen | K18: =IF(E17="x",D17,0) -> 0
B19: Nicht zu öffnende Fenster werden nicht berücksichtigt
B20: Bei Altbauteilen wird ein Abzug bis zu 50 % vorgenommen
A21: 5.1 | B21: Haustür | C21: 0.75 | D21: =F21*0.01 -> 0 | E21: x | F21: 0 | H21: 0,00-0,35 | I21: 0.05 | J21: =IF(AND($K$2="Wert",$E21="x"),$L$2*$M$2*(C21-D21),"") -> 500.31 | K21: =IF(E21="x",C21-D21,0) -> 0.75
A22: 5.1 | B22: Nebentür | C22: 0.25 | D22: 0 | E22: x | F22: 0 | H22: 0,00-0,12 | I22: 0.02 | J22: =IF(AND($K$2="Wert",$E22="x"),$L$2*$M$2*(C22-D22),"") -> 166.77 | K22: =IF(E22="x",C22-D22,0) -> 0.25
A23: 5.1 | B23: 1 Fenster | C23: 0.25 | D23: 0 | E23: x | F23: 0 | H23: 0,00-0,12 | I23: 0.02 | J23: =IF(AND($K$2="Wert",$E23="x"),$L$2*$M$2*(C23-D23),"") -> 166.77 | K23: =IF(E23="x",C23-D23,0) -> 0.25
A24: 5.1 | B24: 1 Fenster | C24: 0.25 | D24: 0 | E24: x | F24: 0 | H24: 0,00-0,12 | I24: 0.02 | J24: =IF(AND($K$2="Wert",$E24="x"),$L$2*$M$2*(C24-D24),"") -> 166.77 | K24: =IF(E24="x",C24-D24,0) -> 0.25
A25: 5.2 | B25: Der Farbanstrich der Fenster ist mangelhaft | D25: 0.1 | K25: =IF(E25="x",D25,0) -> 0
A26: 5.3 | B26: Fensterbänke, Rahmen und Flügel sind durch mangelnde Pflege in ihrer Funktion beeinträchtigt - daurch bis zu 50 % Abzug | D26: 0 | F26: 0 | H26: 0,00-0,75 | I26: 0.05 | J26: =IF(AND($K$2="Wert",$E26="x"),$L$2*$M$2*D26,"") ->  | K26: =IF(E26="x",D26,0) -> 0
A27: 6 | B27: Dach / Entwässerung
A28: 6.1 | B28: Satteldach einfache, handwerksgerechte Konstruktion, die den statischen Erfordernissen entspricht. Holz muss imprägniert sein. Eindeckung Pappschindeln auf Nut- und Federholz oder Spanplatten | C28: 2 | E28: x | J28: =IF(AND($K$2="Wert",$E28="x"),$L$2*$M$2*C28,"") -> 1334.16 | K28: =IF(E28="x",C28,0) -> 2
A29: 6.2 | B29: Eindeckung aus Dachbahnen | D29: 0.25 | F29: 50 | K29: =IF(E29="x",D29,0) -> 0
A30: 6.2 | B30: Eindeckung aus Wellzement oder ähnlichem Material | D30: 0.25 | K30: 0
A31: 6.3 | B31: Windfedern fehlen (je Windfeder 0,05) | D31: =F31*0.01 -> 0.05 | F31: 5 | H31: 0,05-0,20 | I31: 0.05 | J31: =IF(AND($K$2="Wert",$E31="x"),$L$2*$M$2*D31,"") ->  | K31: 0
A32: 6.3 | B32: Fehlerhafte Anwendung des Materials der Eindeckung, genagelte oder wellige Dachbahnen | D32: 0.25 | K32: 0
A33: 6.3 | B33: Eindeckung aus Asbestzement (Hier können gesonderte Entsorgungskosten entstehen) | D33: 0.25 | F33: 25 | H33: 0,25-0,50 | I33: 0.25 | J33: =IF(AND($K$2="Wert",$E33="x"),$L$2*$M$2*D33,"") ->  | K33: =IF(E33="x",D33,0) -> 0
A34: 6.3 | B34: Rinnen fehlen bzw. ohne Funktion (0,25 je Rinne) | D34: 0.25 | F34: 25 | H34: 0,25-0,50 | I34: 0.25 | K34: 0
A35: 6.1a | B35: Pult- oder Flachdach Balkenlage mit Isolierung, Schalung und Regenhaut | C35: 1 | F35: 125 | K35: =IF(E35="x",C35,0) -> 0
A36: 6.2a | B36: Eindeckung aus Wellzement oder ähnlichem Material | D36: 0.25 | J36: =IF(AND($K$2="Wert",$E36="x"),$L$2*$M$2*D36,"") ->  | K36: 0
A37: 6.3a | B37: Windfedern fehlen (je Windfeder 0,05) | D37: 0.05 | F37: 5 | H37: 0,05-0,20 | I37: 0.05 | J37: =IF(AND($K$2="Wert",$E37="x"),$L$2*$M$2*D37,"") ->  | K37: 0
A38: 6.3a | B38: Fehlerhafte Anwendung des Materials, z. B. zu geringe Dachneigung, genagelte Dachbahnen, wellige Dachbahnen | D38: 0.25 | F38: 25 | J38: =IF(AND($K$2="Wert",$E38="x"),$L$2*$M$2*D38,"") ->  | K38: 0
A39: 6.3a | B39: Eindeckung aus Asbestzement (Hier können gesonderte Entsorgungskosten entstehen) | D39: =F39*0.01 -> 0.25 | F39: 25 | H39: 0,25-0,50 | I39: 0.25 | J39: =IF(AND($K$2="Wert",$E39="x"),$L$2*$M$2*D39,"") ->  | K39: 0
A40: 6.3a | B40: Rinnen fehlen bzw. ohne Funktion (0,25 je Rinne) | D40: 0.25 | F40: 25 | H40: 0,25-0,50 | I40: 0.25 | K40: 0
A42: Ausgangswert | C42: =SUMIF($E$4:$E$17,"x",$C$4:$C$17)+SUMIF($E$28:$E$40,"x",$C$28:$C$40) -> 8.5
A43: Abzüge | C43: =SUMIF($E$4:$E$40,"x",$D$4:$D$40) -> 0
A44: Rechenwert | C44: =C42-C43 -> 8.5
B47: Datum der Schätzung:
B49: Pächter:
B51: Gartenadresse:

Sheet Holzlaube (Typ B)
H1: Ausgangs- wert | I1: Abzüge | J1: Rechen- wert | L1: =IF(K2="Wert","Laubengröße","") -> Laubengröße | M1: =IF(K2="Wert","Bauindex","") -> Bauindex
A2: Wertermittlung Einfachlaube mit Fundament (Typ B) | H2: =C45 -> 12.5 | I2: =C46 -> 0 | J2: =C47 -> 12.5 | K2: Wert | L2: 24 | M2: 27.795
A3: lfd. Nr. | B3: Beschreibung | C3: Normal- wert | D3: Abzug | E3: Aus- wahl | H3: =IF($K$2="Wert",$L$2*$M$2*H2,"") -> 8338.5 | I3: =IF($K$2="Wert",$L$2*$M$2*I2,"") -> 0 | J3: =IF($K$2="Wert",$L$2*$M$2*J2,"") -> 8338.5
A4: 1 | B4: Fundament & Bodenplatte
A5: 1.1 | B5: 80 cm tiefes Streifenfundament mit 12 bis 15 cm Betonplatte | C5: 5 | E5: x | J5: =IF(AND($K$2="Wert",$E5="x"),$L$2*$M$2*C5,"") -> 3335.4 | K5: =IF(E5="x",C5,0) -> 5
A6: 1.2 | B6: Statt der Betonplatte Lagerhölzer auf Streifenfundament | D6: 3 | J6: =IF(AND($K$2="Wert",$E6="x"),$L$2*$M$2*D6,"") ->  | K6: =IF(E6="x",D6,0) -> 0
A7: 1.2 | B7: Streifenfundament fehlt bei bei sandigen Böden | D7: 1 | K7: =IF(E7="x",D7,0) -> 0
A8: 1.3 | B8: Fehlt das Streifenfundament bei normalen Böden, ist das Fundament durch Frost gefährdet | D8: 2 | K8: 0
A9: 1.3 | B9: Fundamentoberkante bei erdgleich | D9: 4.5 | J9: =IF(AND($K$2="Wert",$E9="x"),$L$2*$M$2*D9,"") ->  | K9: 0
A10: 2 | B10: Umfassungswände
A11: 2.1 | B11: Blockhausbohlen, Wandstärke mindestens 4,5 cm | C11: 2.5 | E11: x | J11: =IF(AND($K$2="Wert",$E11="x"),$L$2*$M$2*C11,"") -> 1667.7 | K11: =IF(E11="x",C11,0) -> 2.5
A12: 2.2 | B12: Blockhausbohlen, Wandstärke nur 3,0 bis 4,0 cm | D12: 1 | J12: =IF(AND($K$2="Wert",$E12="x"),$L$2*$M$2*D12,"") ->  | K12: =IF(E12="x",D12,0) -> 0
A13: 2.2 | B13: Ausführung in Nut- und Federholz oder Blockhausbohlen unter 3,0 cm | D13: 1.5 | K13: 0
A14: 3 | B14: Außenanstrich
A15: 3.1 | B15: Mehrmaliger Anstrich mit Anstrichmittel, welches Holzteile sowohl gegen Feuchtigkeit als auch gegen Schädlinge schützt | C15: 1 | E15: x | F15: 125 | I15: Stufung | J15: =IF(AND($K$2="Wert",$E15="x"),$L$2*$M$2*C15,"") -> 667.08 | K15: =IF(E15="x",C15,0) -> 1
A16: 3.2 | B16: Anstrich ist älter als vier Jahre, Abzug 0,25 pro Jahr | D16: =F16*0.01 -> 0.25 | F16: 25 | H16: 0,25-1,00 | I16: 0.25 | J16: =IF(AND($K$2="Wert",$E16="x"),$L$2*$M$2*D16,"") ->  | K16: =IF(E16="x",D16,0) -> 0
A17: 3.3 | B17: Anstrich blättert ab und muss erneuert werden, 0,25 jeSeite | D17: =F17*0.01 -> 0.25 | F17: 25 | H17: 0,25-1,00 | I17: 0.25 | J17: =IF(AND($K$2="Wert",$E17="x"),$L$2*$M$2*D17,"") ->  | K17: =IF(E17="x",D17,0) -> 0
A18: 4 | B18: Innenwand
A19: 4.1 | B19: Innenwand muss konstruktiv wie die Außenwände ausgeführt sein | C19: 0.5 | E19: x | J19: =IF(AND($K$2="Wert",$E19="x"),$L$2*$M$2*C19,"") -> 333.54 | K19: =IF(E19="x",C19,0) -> 0.5
A20: 5 | B20: Fenster und Türen | C20: 1.5 | D20: =SUMIF($E$24:$E$27,"",$C$24:$C$27) -> 0 | E20: x | J20: =IF(AND($K$2="Wert",$E20="x"),$L$2*$M$2*C20,"") -> 1000.62 | K20: =IF(E20="x",C20,0) -> 1.5
B21: Handwerksgerecht erstellte Fenster in Normabmessungen | K21: =IF(E20="x",D20,0) -> 0
B22: Nicht zu öffnende Fenster werden nicht berücksichtigt
B23: Bei Altbauteilen wird ein Abzug bis zu 50 % vorgenommen
A24: 5.1 | B24: Haustür | C24: 0.75 | D24: =F24*0.01 -> 0 | E24: x | F24: 0 | H24: 0,00-0,35 | I24: 0.05 | J24: =IF(AND($K$2="Wert",$E24="x"),$L$2*$M$2*(C24-D24),"") -> 500.31
A25: 5.1 | B25: Nebentür | C25: 0.25 | D25: 0 | E25: x | F25: 0 | H25: 0,00-0,12 | I25: 0.02 | J25: =IF(AND($K$2="Wert",$E25="x"),$L$2*$M$2*(C25-D25),"") -> 166.77
A26: 5.1 | B26: 1 Fenster | C26: 0.25 | D26: 0 | E26: x | F26: 0 | H26: 0,00-0,12 | I26: 0.02 | J26: =IF(AND($K$2="Wert",$E26="x"),$L$2*$M$2*(C26-D26),"") -> 166.77
A27: 5.1 | B27: 1 Fenster | C27: 0.25 | D27: 0 | E27: x | F27: 0 | H27: 0,00-0,12 | I27: 0.05 | J27: =IF(AND($K$2="Wert",$E27="x"),$L$2*$M$2*(C27-D27),"") -> 166.77
A28: 5.2 | B28: Der Farbanstrich der Fenster ist mangelhaft | D28: 0.1 | K28: =IF(E28="x",D28,0) -> 0
A29: 5.3 | B29: Fensterbänke, Rahmen und Flügel sind durch mangelnde Pflege in ihrer Funktion beeinträchtigt - daurch bis zu 50 % Abzug | D29: 0.75 | F29: 75 | H29: 0,00-0,75 | I29: 0.05 | J29: =IF(AND($K$2="Wert",$E29="x"),$L$2*$M$2*D29,"") ->  | K29: =IF(E29="x",D29,0) -> 0
A30: 6 | B30: Dach / Entwässerung
A31: 6.1 | B31: Satteldach einfache, handwerksgerechte Konstruktion, die den statischen Erfordernissen entspricht. Holz muss imprägniert sein. Eindeckung Pappschindeln auf Nut- und Federholz oder Spanplatten | C31: 2 | E31: x | J31: =IF(AND($K$2="Wert",$E31="x"),$L$2*$M$2*C31,"") -> 1334.16 | K31: =IF(E31="x",C31,0) -> 2
A32: 6.2 | B32: Eindeckung aus Dachbahnen | D32: 0.25 | F32: 50 | K32: =IF(E32="x",D32,0) -> 0
A33: 6.2 | B33: Eindeckung aus Wellzement oder ähnlichem Material | D33: 0.25 | K33: =IF(E33="x",D33,0) -> 0
A34: 6.3 | B34: Windfedern fehlen (je Windfeder 0,05) | D34: =F34*0.01 -> 0.05 | F34: 5 | H34: 0,05-0,20 | I34: 0.05 | J34: =IF(AND($K$2="Wert",$E34="x"),$L$2*$M$2*D34,"") ->  | K34: 0
A35: 6.3 | B35: Fehlerhafte Anwendung des Materials der Eindeckung, genagelte oder wellige Dachbahnen | D35: 0.25 | K35: 0
A36: 6.3 | B36: Eindeckung aus Asbestzement (Hier können gesonderte Entsorgungskosten entstehen) | D36: 0.5 | F36: 50 | H36: 0,25-0,50 | I36: 0.25 | J36: =IF(AND($K$2="Wert",$E36="x"),$L$2*$M$2*D36,"") ->  | K36: 0
A37: 6.3 | B37: Rinnen fehlen bzw. ohne Funktion (0,25 je Rinne) | D37: 0.5 | F37: 50 | H37: 0,25-0,50 | I37: 0.25 | K37: 0
A38: 6.1a | B38: Pult- oder Flachdach Balkenlage mit Isolierung, Schalung und Regenhaut | C38: 1 | F38: 125
A39: 6.2a | B39: Eindeckung aus Wellzement oder ähnlichem Material | D39: 0.25 | J39: =IF(AND($K$2="Wert",$E39="x"),$L$2*$M$2*D39,"") ->  | K39: =IF(E39="x",D39,0) -> 0
A40: 6.3a | B40: Windfedern fehlen (je Windfeder 0,05) | D40: 0.05 | F40: 5 | H40: 0,05-0,20 | I40: 0.05 | J40: =IF(AND($K$2="Wert",$E40="x"),$L$2*$M$2*D40,"") ->  | K40: 0
A41: 6.3a | B41: Fehlerhafte Anwendung des Materials, z. B. zu geringe Dachneigung, genagelte Dachbahnen, wellige Dachbahnen | D41: 0.25 | F41: 25 | J41: =IF(AND($K$2="Wert",$E41="x"),$L$2*$M$2*D41,"") ->  | K41: 0
A42: 6.3a | B42: Eindeckung aus Asbestzement (Hier können gesonderte Entsorgungskosten entstehen) | D42: =F42*0.01 -> 0.25 | F42: 25 | H42: 0,25-0,50 | I42: 0.25 | J42: =IF(AND($K$2="Wert",$E42="x"),$L$2*$M$2*D42,"") ->  | K42: 0
A43: 6.3a | B43: Rinnen fehlen bzw. ohne Funktion (0,25 je Rinne) | D43: 0.25 | F43: 25 | H43: 0,25-0,50 | I43: 0.25 | K43: 0
A45: Ausgangswert | C45: =SUMIF($E$4:$E$20,"x",$C$4:$C$20)+SUMIF($E$31:$E$43,"x",$C$31:$C$43) -> 12.5
A46: Abzüge | C46: =SUMIF($E$4:$E$43,"x",$D$4:$D$43) -> 0
A47: Rechenwert | C47: =C45-C46 -> 12.5
B50: Datum der Schätzung:
B52: Pächter:
B54: Gartenadresse:

Sheet Holzlaube (Nurdach)
H1: Ausgangs- wert | I1: Abzüge | J1: Rechen- wert | L1: =IF(K2="Wert","Laubengröße","") -> Laubengröße | M1: =IF(K2="Wert","Bauindex","") -> Bauindex
A2: Wertermittlung Holz-Laube (Nurdach) | H2: =C67 -> 23 | I2: =C68 -> 0 | J2: =C69 -> 23 | K2: Wert | L2: 24 | M2: 27.795
A3: lfd. Nr. | B3: Beschreibung | C3: Normal- wert | D3: Abzug | E3: Aus- wahl | H3: =IF($K$2="Wert",$L$2*$M$2*H2,"") -> 15342.84 | I3: =IF($K$2="Wert",$L$2*$M$2*I2,"") -> 0 | J3: =IF($K$2="Wert",$L$2*$M$2*J2,"") -> 15342.84
A4: 1 | B4: Fundament & Bodenplatte
A5: 1.1 | B5: 80 cm tiefes Streifenfundament mit 12 bis 15 cm Betonplatte | C5: 5 | E5: x | J5: =IF(AND($K$2="Wert",$E5="x"),$L$2*$M$2*C5,"") -> 3335.4 | K5: =IF(E5="x",C5,0) -> 5
A6: 1.2 | B6: Statt der Betonplatte Lagerhölzer auf Streifenfundament und Hobeldielen oder Fußbodenplatten 24 mm (Spanplatten V100) | D6: 2.5 | J6: =IF(AND($K$2="Wert",$E6="x"),$L$2*$M$2*D6,"") ->  | K6: =IF(E6="x",D6,0) -> 0
A7: 1.2 | B7: Nur Sockelsteine mit Lagerhölzern, sonst wie vorstehend | D7: 3.5 | J7: =IF(AND($K$2="Wert",$E7="x"),$L$2*$M$2*D7,"") ->  | K7: =IF(E7="x",D7,0) -> 0
A8: 1.2 | B8: Streifenfundament fehlt bei sandigen Böden | D8: 2 | K8: =IF(E8="x",D8,0) -> 0
A9: 1.3 | B9: Fehlt das Streifenfundament bei normalen Böden, ist das Fundament durch Frost gefährdet | D9: 3 | K9: =IF(E9="x",D9,0) -> 0
A10: 1.3 | B10: Fundamentoberkante erdgleich | D10: 2 | J10: =IF(AND($K$2="Wert",$E10="x"),$L$2*$M$2*D10,"") ->  | K10: =IF(E10="x",D10,0) -> 0
A11: 2 | B11: Isolierung des Fußbodens (Estrich)
A12: 2.1 | B12: Ein einwandfreier schwimmender Estrich auf Betonplatte oder Lagerhölzer 10 cm mit Isolierungund Hobeldielen oder Fußbodenplatten 24 mm (Spanplatten V100) | C12: 0.75 | E12: x | J12: =IF(AND($K$2="Wert",$E12="x"),$L$2*$M$2*C12,"") -> 500.31 | K12: =IF(E12="x",C12,0) -> 0.75
A13: 2.2 | B13: Einfacher Verbundestrich auf einem Betonfundament | D13: 0.25 | K13: =IF(E13="x",D13,0) -> 0
A14: 2.2 | B14: Fehlende Isolierung unter den Hobeldielen oder Fußbodenplatten | D14: 0.75 | F14: 75 | J14: =IF(AND($K$2="Wert",$E14="x"),$L$2*$M$2*D14,"") ->  | K14: 0
A15: 2.3 | B15: Stark gerissener schwimmender Estrich | D15: 0.5 | J15: =IF(AND($K$2="Wert",$E15="x"),$L$2*$M$2*D15,"") ->  | K15: 0
A16: 2.3 | B16: Durch Wasser durchnässter Estrich (Schaden aus 1.3) | D16: 0.75 | J16: =IF(AND($K$2="Wert",$E16="x"),$L$2*$M$2*D16,"") ->  | K16: 0
A17: 2.3 | B17: Stärke der Fußbodenplatten zu gering oder Abstand der Lagerhölzer zu groß. Boden biegt bei Belastung merklich durch. | D17: 0.5 | J17: =IF(AND($K$2="Wert",$E17="x"),$L$2*$M$2*D17,"") ->  | K17: 0
A18: 2.3 | B18: Isolierung ist feucht | D18: 0.75 | J18: =IF(AND($K$2="Wert",$E18="x"),$L$2*$M$2*D18,"") ->  | K18: 0
A19: 3 | B19: Giebelwände
A20: 3.1 | B20: Holzgerüst aus Kanthölzern der Güteklasse 2, mind. 8 x 8 cm, mit ausr. Schubaussteifung sowie Ober- und Untergurten.Gerüst muss auf einem gegen Feuchtigkeit isolierten Sockel stehen. Ständerabstand max. 70 cm. Öffnungen und Fugen sind so zu verleisten, dass eingedrungenes Wasser problemlos ablaufen kann. Wände außen 19,5 mm Nut- und Federholz, innen 12,5 mm oder Spanplatten gleicher Stärke. Das Dach liegt an den Dachseiten auf einem Drempel (Seitenwand geringer Höhe) auf | C20: 4 | E20: x | I20: Stufung | J20: =IF(AND($K$2="Wert",$E20="x"),$L$2*$M$2*C20,"") -> 2668.32 | K20: =IF(E20="x",C20,0) -> 4
A21: 3.2 | B21: Kein Drempel vorhanden | D21: 1 | K21: =IF(E21="x",D21,0) -> 0
A22: 3.2 | B22: Außenschalung statt 19,5 nur 12,5 mm | D22: =F22*0.01 -> 0.25 | F22: 25 | H22: 0,25-0,50 | I22: 0.05 | J22: =IF(AND($K$2="Wert",$E22="x"),$L$2*$M$2*D22,"") ->  | K22: 0
A23: 3.2 | B23: Außenschalung erkennbar 3. Wahl | D23: =F23*0.01 -> 0.25 | F23: 25 | H23: 0,25-0,50 | I23: 0.05 | K23: 0
A24: 3.2 | B24: Statt Profilholz verputzte Leichtbauplatten | D24: =F24*0.01 -> 0.2 | F24: 20 | H24: 0,20-0,40 | I24: 0.05 | K24: 0
A25: 3.2 | B25: Ständerabstand größer 70 cm | D25: =F25*0.01 -> 0.1 | F25: 10 | H25: 0,10-0,60 | I25: 0.1 | K25: 0
A26: 3.2 | B26: Holzkonstruktion aus altem Bauholz | D26: =F26*0.01 -> 0.2 | F26: 20 | H26: 0,20-0,40 | I26: 0.05 | K26: 0
A27: 3.3 | B27: Öffnungen und Fugen nicht verleistet | D27: 0.4 | K27: 0
A28: 3.3 | B28: Abstand Schalung bis Oberkante Gelände kleiner als 15 cm | D28: 0.75 | K28: 0
A29: 3.3 | B29: Nicht handwerksgerechte Anbringung der Außenschalung, welches zum Entfernen der gesamten Schalung zwingt. | D29: =F29*0.01 -> 0.75 | F29: 75 | H29: 0,75-2,00 | I29: 0.05 | K29: 0
A30: 4 | B30: Außenanstrich
A31: 4.1 | B31: Mehrmaliger Anstrich mit Anstrichmittel, welches Holzteile sowohl gegen Feuchtigkeit als auch gegen Schädlinge schützt | C31: 0.5 | E31: x | F31: 125 | J31: =IF(AND($K$2="Wert",$E31="x"),$L$2*$M$2*C31,"") -> 333.54 | K31: =IF(E31="x",C31,0) -> 0.5
A32: 4.2 | B32: Anstrich ist älter als vier Jahre, Abzug 0,25 pro Jahr | D32: =F32*0.01 -> 0.25 | F32: 25 | H32: 0,25-0,50 | I32: 0.25 | J32: =IF(AND($K$2="Wert",$E32="x"),$L$2*$M$2*D32,"") ->  | K32: =IF(E32="x",D32,0) -> 0
A33: 4.3 | B33: Anstrich blättert ab und muss erneuert werden (0,25 je Seite) | D33: =F33*0.01 -> 0.25 | F33: 25 | H33: 0,25-0,50 | I33: 0.25 | J33: =IF(AND($K$2="Wert",$E33="x"),$L$2*$M$2*D33,"") ->  | K33: =IF(E33="x",D33,0) -> 0
A34: 5 | B34: Innenwand
A35: 5.1 | B35: Innenwand muss konstruktiv wie die Außenwände ausgeführt sein | C35: 1 | E35: x | J35: =IF(AND($K$2="Wert",$E35="x"),$L$2*$M$2*C35,"") -> 667.08 | K35: =IF(E35="x",D35,0) -> 0
A36: 5.2 | B36: Nur einseitig verschalt | D36: 0.25 | J36: =IF(AND($K$2="Wert",$E36="x"),$L$2*$M$2*D36,"") ->  | K36: =IF(E36="x",D36,0) -> 0
A37: 5.2 | B37: Verkleidung aus qualitativ minderwertigen Materialien | D37: 0.25 | J37: =IF(AND($K$2="Wert",$E37="x"),$L$2*$M$2*D37,"") ->  | K37: =IF(E37="x",D37,0) -> 0
A38: 5.3 | B38: Ständerabstand größer als 70 cm | D38: 0.25 | J38: =IF(AND($K$2="Wert",$E38="x"),$L$2*$M$2*D38,"") ->  | K38: =IF(E38="x",D38,0) -> 0
A39: 6 | B39: Deckenverkleidung & Wärmeisolierung
A40: 6.1 | B40: Deckenverkleidung aus einfachem Profilholz oder Gipskartonplatten. Die beiden Giebelwände sowie die Innenseiten der Dachflächen sind gegen Wärme und Kälte zu isolieren. Mindeststärke der Isolierung 6 cm. Je nach Material ist darauf zu achten, dass eine Durchfeuchtung ausgeschlossen ist. | C40: 3.5 | E40: x | J40: =IF(AND($K$2="Wert",$E40="x"),$L$2*$M$2*C40,"") -> 2334.78 | K40: =IF(E40="x",C40,0) -> 3.5
A41: 6.2 | B41: Deckenverkleidung aus Gipskartonplatten | D41: 0.3 | F41: 50 | J41: =IF(AND($K$2="Wert",$E41="x"),$L$2*$M$2*D41,"") ->  | K41: =IF(E41="x",D41,0) -> 0
A42: 6.2 | B42: Stärke der Isolierung nur ca. 5 cm | D42: 0.5 | F42: 50 | J42: =IF(AND($K$2="Wert",$E42="x"),$L$2*$M$2*D42,"") ->  | K42: =IF(E42="x",D42,0) -> 0
A43: 6.3 | B43: Verwendung einfacherer Baustoffe (z. B. Kurzlängen bei Profilholz) | D43: =F43*0.01 -> 0.15 | F43: 15 | H43: 0,15-0,30 | I43: 0.05 | J43: =IF(AND($K$2="Wert",$E43="x"),$L$2*$M$2*D43,"") ->  | K43: =IF(E43="x",D43,0) -> 0
A44: 6.2 | B44: Mangelnde Anbringung, offene Fugen usw. | D44: 0.3 | K44: =IF(E44="x",D44,0) -> 0
A45: 6.3 | B45: Durch Schäden in der Außenverkleidung sind Teile der Isolierung durchfeuchtet. | D45: 0.3 | F45: 50 | K45: 0
A46: 7 | B46: Fenster und Türen | C46: 2.25 | D46: =SUMIF($E$50:$E$54,"",$C$50:$C$54) -> 0 | E46: x | J46: =IF(AND($K$2="Wert",$E46="x"),$L$2*$M$2*C46,"") -> 1500.93 | K46: =IF(E46="x",C46,0) -> 2.25
B47: Handwerksgerecht erstellte Fenster in Normabmessungen | K47: =IF(E46="x",D46,0) -> 0
B48: Nicht zu öffnende Fenster werden nicht berücksichtigt
B49: Bei Altbauteilen wird ein Abzug bis zu 50 % vorgenommen
A50: 7.1 | B50: Haustür | C50: 1 | D50: =F50*0.01 -> 0 | E50: x | F50: 0 | H50: 0,00-0,60 | I50: 0.05 | J50: =IF(AND($K$2="Wert",$E50="x"),$L$2*$M$2*(C50-D50),"") -> 667.08
A51: 7.1 | B51: Nebentür | C51: 0.5 | D51: 0 | E51: x | F51: 0 | H51: 0,00-0,30 | I51: 0.05 | J51: =IF(AND($K$2="Wert",$E51="x"),$L$2*$M$2*(C51-D51),"") -> 333.54
A52: 7.1 | B52: Großes Fenster | C52: 0.3 | D52: 0 | E52: x | F52: 0 | H52: 0,00-0,30 | I52: 0.05 | J52: =IF(AND($K$2="Wert",$E52="x"),$L$2*$M$2*(C52-D52),"") -> 200.124
A53: 7.1 | B53: Großes Fenster | C53: 0.3 | D53: 0 | E53: x | F53: 0 | H53: 0,00-0,30 | I53: 0.05 | J53: =IF(AND($K$2="Wert",$E53="x"),$L$2*$M$2*(C53-D53),"") -> 200.124
A54: 7.1 | B54: Kleines Fenster | C54: 0.15 | D54: 0 | E54: x | F54: 0 | H54: 0,00-0,25 | I54: 0.05 | J54: =IF(AND($K$2="Wert",$E54="x"),$L$2*$M$2*(C54-D54),"") -> 100.062
A55: 7.3 | B55: Der Farbanstrich der Fenster ist mangelhaft | D55: 0.1 | K55: =IF(E55="x",D55,0) -> 0
A56: 7.3 | B56: Fensterbänke, Rahmen und Flügel sind durch mangelnde Pflege in ihrer Funktion beeinträchtigt - daurch bis zu 50 % Abzug | D56: 0 | F56: 0 | H56: 0,00-1,10 | I56: 0.05 | J56: =IF(AND($K$2="Wert",$E56="x"),$L$2*$M$2*D56,"") ->  | K56: =IF(E56="x",D56,0) -> 0
A57: 8 | B57: Dach / Entwässerung
A58: 8.1 | B58: Einfache, handwerksgerechte Konstruktion aus Bauholz der Güteklasse 2, die den statischen Erfordernissen entspricht. Holz muss imprägniert sein. Eindeckung Pfannen auf Latten mit Folie. | C58: 6 | E58: x | J58: =IF(AND($K$2="Wert",$E58="x"),$L$2*$M$2*C58,"") -> 4002.48 | K58: =IF(E58="x",C58,0) -> 6
A59: 8.2 | B59: Holzkonstruktion aus altem Bauholz | D59: =F59*0.01 -> 0.5 | F59: 50 | H59: 0,50-1,00 | I59: 0.05 | J59: =IF(AND($K$2="Wert",$E59="x"),$L$2*$M$2*D59,"") ->  | K59: =IF(E59="x",D59,0) -> 0
A60: 8.2 | B60: Eindeckung aus Wellzement oder ähnlichem Material | D60: 1.25 | F60: 125 | H60: 1,25-1,50 | I60: 0.05 | K60: 0
A61: 8.2 | B61: Eindeckung aus Dachbahnen | D61: 1.25 | K61: 0
A62: 8.3 | B62: Windfedern fehlen (0,05 je Windfeder) | D62: 0.05 | F62: 5 | H62: 0,05-0,20 | I62: 0.05 | J62: =IF(AND($K$2="Wert",$E62="x"),$L$2*$M$2*D62,"") ->  | K62: =IF(E62="x",D62,0) -> 0
A63: 8.3 | B63: Fehlerhafte Anwendung des Materials, genagelte oder wellige Dachbahnen | D63: 0.25 | K63: 0
A64: 8.3 | B64: Eindeckung aus Asbestzement (Hier können gesonderte Entsorgungskosten entstehen) | D64: =F64*0.01 -> 1.25 | F64: 125 | H64: 1,25-1,50 | I64: 0.25 | K64: 0
A65: 8.3 | B65: Rinnen fehlen bzw. ohne Funktion (0,25 je Rinne) | D65: 0.25 | F65: 25 | H65: 0,25-0,50 | I65: 0.25 | K65: 0
A67: Ausgangswert | C67: =SUMIF($E$4:$E$46,"x",$C$4:$C$46)+SUMIF($E$58:$E$65,"x",$C$58:$C$65) -> 23
A68: Abzüge | C68: =SUMIF($E$4:$E$65,"x",$D$4:$D$65) -> 0
A69: Rechenwert | C69: =C67-C68 -> 23
B72: Datum der Schätzung:
B74: Pächter:
B76: Gartenadresse:
